bitfinex/quotes_ETHUSD_20230103
["timestamp","ask_amount","ask_price","bid_price","bid_amount"]
[1672707611077,10.166,1216.6,1216.5,25.143129]
[1672707611078,10.164,1216.6,1216.5,25.143129]
[1672707611477,10.164,1216.6,1216.5,0.482229]
[1672707611688,10.166,1216.6,1216.5,0.383229]
[1672707611925,10.164,1216.6,1216.5,0.383229]
[1672707612923,0.23,1216.6,1216.5,4.383229]
[1672707613185,0.23,1216.6,1216.5,12.603529]
[1672707613417,0.23,1216.6,1216.5,12.702529]
[1672707613987,10.164,1216.6,1216.5,8.702529]
[1672707615049,10.166,1216.6,1216.5,8.699529]
[1672707615248,10.164,1216.6,1216.5,8.702529]
[1672707616856,10.166,1216.6,1216.5,8.699529]
[1672707617414,10.164,1216.6,1216.5,8.702529]
[1672707620395,10.164,1216.6,1216.5,19.4371809]
[1672707620603,5.0,1216.6,1216.5,29.73986472]
[1672707621720,0.066,1216.7,1216.5,29.73986472]
[1672707621863,4.934,1216.9,1216.6,5.82]
[1672707622074,4.934,1216.9,1216.7,24.65685]
[1672707622284,9.934,1216.8,1216.7,24.75585]
[1672707622603,10.164,1216.8,1216.7,24.75585]
[1672707624121,10.164,1216.8,1216.7,24.75308661]
[1672707629593,10.166,1216.8,1216.7,24.75008661]
[1672707629811,10.164,1216.8,1216.7,24.75308661]
[1672707640620,5.164,1216.8,1216.7,24.75308661]
[1672707641424,10.164,1216.8,1216.7,24.75308661]
[1672707646772,10.164,1216.8,1216.7,24.74919054]
[1672707647455,5.164,1216.8,1216.7,24.74919054]
[1672707648449,10.164,1216.8,1216.7,24.74919054]
[1672707650276,10.164,1216.8,1216.7,25.60500807]
[1672707654087,14.46401403,1216.8,1216.7,25.60500807]
[1672707654571,5.164,1216.8,1216.7,25.60500807]
[1672707656235,10.164,1216.8,1216.7,25.60500807]
[1672707658304,5.0,1216.8,1216.7,25.60500807]
[1672707660353,5.0,1216.8,1216.7,29.19467026]
[1672707660602,5.0,1216.8,1216.7,29.44705408]
[1672707660988,5.0,1216.8,1216.7,25.85739189]
[1672707663232,9.30001403,1216.8,1216.7,25.85739189]
[1672707665014,5.0,1216.8,1216.7,25.85739189]
[1672707666940,9.30001403,1216.8,1216.7,25.85739189]
[1672707667759,5.0,1216.8,1216.7,25.85739189]
[1672707667969,9.30001403,1216.8,1216.7,27.69039189]
[1672707668373,4.30001403,1216.8,1216.7,27.69039189]
[1672707669001,4.30001403,1216.8,1216.7,27.68741583]
[1672707669459,9.30001403,1216.8,1216.7,27.68741583]
[1672707670088,9.30001403,1216.8,1216.7,29.95933696]
[1672707670089,0.87155,1216.8,1216.7,29.95933696]
[1672707670300,0.066,1216.9,1216.7,36.2380837]
[1672707670506,4.30001403,1217.0,1216.7,36.2380837]
[1672707670507,4.30001403,1217.0,1216.9,24.6528]
[1672707670737,4.31670473,1217.0,1216.9,26.5848]
[1672707670952,4.31670473,1217.0,1216.9,26.83718382]
[1672707672147,9.31670473,1217.0,1216.9,26.83718382]
[1672707674310,9.31670473,1217.0,1216.9,30.5259712]
[1672707675303,5.0,1217.0,1216.9,30.5259712]
[1672707681708,9.93360473,1217.1,1216.9,30.5259712]
[1672707681940,9.86760473,1217.1,1216.9,30.5259712]
[1672707682830,5.0,1217.0,1216.9,30.5259712]
[1672707688538,9.93360473,1217.1,1216.9,30.5259712]
[1672707688748,9.86760473,1217.1,1216.9,30.5259712]
[1672707689631,5.0,1217.0,1216.9,30.5259712]
[1672707690660,5.0,1217.0,1216.9,28.6929712]
[1672707691403,5.0,1217.0,1216.9,28.69023999]
[1672707695643,9.93360473,1217.1,1216.9,28.69023999]
[1672707695808,9.86760473,1217.1,1216.9,28.69023999]
[1672707696748,5.0,1217.0,1216.9,28.69023999]
[1672707702819,9.93360473,1217.1,1216.9,28.69023999]
[1672707703007,9.86760473,1217.1,1216.9,28.69023999]
[1672707710425,9.25070473,1217.1,1216.9,28.69023999]
[1672707711285,4.31670473,1217.0,1216.9,28.69023999]
[1672707711999,9.46215624,1217.1,1216.9,30.52323999]
[1672707712365,12.26350473,1217.2,1217.1,24.64875]
[1672707712574,9.31670473,1217.2,1217.1,24.74501879]
[1672707712742,9.31670473,1217.2,1217.1,24.99353163]
[1672707714560,4.31670473,1217.2,1217.1,24.99353163]
[1672707720613,10.69625151,1217.3,1217.1,0.34865261]
[1672707720858,9.31245608,1217.2,1217.0,16.52914879]
[1672707721073,9.31445608,1217.2,1217.0,24.74306879]
[1672707721282,4.31245608,1217.1,1217.0,24.74306879]
[1672707721509,4.31245608,1217.1,1217.0,24.74606879]
[1672707721673,4.31245608,1217.1,1217.0,8.31256879]
[1672707722078,4.31445608,1217.1,1217.0,8.30956879]
[1672707722347,4.31245608,1217.1,1217.0,8.31256879]
[1672707722776,4.31245608,1217.1,1217.0,16.52948879]
[1672707723086,4.31445608,1217.1,1217.0,16.52648879]
[1672707723229,4.31245608,1217.1,1217.0,16.52948879]
[1672707725285,9.31245608,1217.1,1217.0,16.52948879]
[1672707729351,9.31245608,1217.1,1217.0,24.74640879]
[1672707730284,4.31245608,1217.1,1217.0,24.74640879]
[1672707732443,4.31245608,1217.1,1217.0,16.52948879]
[1672707733447,9.31245608,1217.1,1217.0,16.52948879]
[1672707737242,9.31245608,1217.1,1217.0,16.5258253]
[1672707739578,9.31245608,1217.1,1217.0,24.7427453]
[1672707746553,4.31245608,1217.1,1217.0,24.7427453]
[1672707750495,9.31245608,1217.2,1217.0,24.7427453]
[1672707750700,9.24645608,1217.2,1217.0,24.7427453]
[1672707757202,4.31245608,1217.1,1217.0,24.7427453]
[1672707757452,9.31245608,1217.2,1217.0,24.7427453]
[1672707757662,9.24645608,1217.2,1217.0,24.7427453]
[1672707758845,9.24645608,1217.2,1217.0,24.74041212]
[1672707782118,9.24645608,1217.2,1217.0,24.73651478]
[1672707784059,4.31245608,1217.1,1217.0,24.73651478]
[1672707787177,9.31245608,1217.2,1217.0,24.73651478]
[1672707787389,9.24645608,1217.2,1217.0,28.86327626]
[1672707789528,9.24337094,1217.2,1217.0,28.86327626]
[1672707795115,4.31245608,1217.2,1217.0,28.86327626]
[1672707795427,4.31245608,1217.2,1217.0,29.11566008]
[1672707800061,4.31245608,1217.2,1217.1,8.93340302]
[1672707800256,9.31245608,1217.2,1217.1,25.46217181]
[1672707809306,4.31245608,1217.2,1217.1,25.46217181]
[1672707810255,9.31245608,1217.2,1217.1,25.46217181]
[1672707811276,9.31245608,1217.2,1217.1,25.45950306]
[1672707816299,5.0,1217.2,1217.1,25.45950306]
[1672707816592,28.04344076,1217.2,1217.1,0.81075306]
[1672707816731,34.75568257,1217.2,1217.1,0.71448427]
[1672707817113,26.54011257,1217.2,1217.1,0.71448427]
[1672707818352,38.90454371,1217.2,1217.1,0.71448427]
[1672707818522,55.33568371,1217.2,1217.1,0.71448427]
[1672707819610,47.12011371,1217.2,1217.1,0.71448427]
[1672707820251,55.33568371,1217.2,1217.1,0.71448427]
[1672707821491,38.90454371,1217.2,1217.1,0.71448427]
[1672707821700,47.12011371,1217.2,1217.1,0.71448427]
[1672707822348,38.90454371,1217.2,1217.1,0.71448427]
[1672707823291,32.8092019,1217.2,1217.1,0.71448427]
[1672707823692,37.89548122,1217.2,1217.1,0.71448427]
[1672707823909,37.89559784,1217.2,1217.1,0.71448427]
[1672707825050,32.8092019,1217.2,1217.1,0.71448427]
[1672707825314,37.89559655,1217.2,1217.1,0.71448427]
[1672707825581,32.8092019,1217.2,1217.1,0.71448427]
[1672707825792,37.89424489,1217.2,1217.1,0.71448427]
[1672707826160,32.89424489,1217.2,1217.1,0.71448427]
[1672707827109,37.89424489,1217.2,1217.1,0.71448427]
[1672707830239,47.12011371,1217.2,1217.1,0.71448427]
[1672707830453,58.33568371,1217.2,1217.1,0.71448427]
[1672707830903,50.12011371,1217.2,1217.1,0.71448427]
[1672707832033,58.33568371,1217.2,1217.1,0.71200659]
[1672707832239,50.12011371,1217.2,1217.1,0.71200659]
[1672707833762,41.90454371,1217.2,1217.1,0.71200659]
[1672707839371,36.90454371,1217.2,1217.1,0.71200659]
[1672707839705,41.90454371,1217.2,1217.1,0.71200659]
[1672707840899,40.07454371,1217.2,1217.1,0.71200659]
[1672707845714,35.07454371,1217.2,1217.1,0.71200659]
[1672707846893,40.07454371,1217.2,1217.1,0.71200659]
[1672707847685,42.1947719,1217.2,1217.1,0.71200659]
[1672707848003,44.0127719,1217.2,1217.1,0.71200659]
[1672707851579,35.7972019,1217.2,1217.1,0.71200659]
[1672707854265,30.7972019,1217.2,1217.1,0.71200659]
[1672707855412,35.7972019,1217.2,1217.1,0.71200659]
[1672707856559,35.7972019,1217.2,1217.1,0.7088081]
[1672707861254,30.7972019,1217.2,1217.1,0.7088081]
[1672707861435,35.7972019,1217.2,1217.1,0.7088081]
[1672707867416,30.7972019,1217.2,1217.1,0.7088081]
[1672707868473,35.7972019,1217.2,1217.1,0.7088081]
[1672707869786,44.0127719,1217.2,1217.1,0.7088081]
[1672707871101,42.1947719,1217.2,1217.1,0.7088081]
[1672707873557,33.9792019,1217.2,1217.1,0.7088081]
[1672707875231,29.9792019,1217.2,1217.1,0.7088081]
[1672707875449,38.1947719,1217.2,1217.1,0.7088081]
[1672707876834,17.92976114,1217.2,1217.1,0.7088081]
[1672707876996,20.20020663,1217.2,1217.1,0.7088081]
[1672707877734,20.20020663,1217.2,1217.1,8.9250581]
[1672707877941,20.20020663,1217.2,1217.1,9.02132689]
[1672707878891,20.20020663,1217.2,1217.1,9.01914802]
[1672707879832,16.05134549,1217.2,1217.1,9.01914802]
[1672707880042,10.164,1217.2,1217.1,25.45164802]
[1672707880254,15.25960238,1217.2,1217.1,25.45164802]
[1672707881216,15.25960238,1217.2,1217.1,9.01914802]
[1672707881435,10.164,1217.2,1217.1,9.01914802]
[1672707881828,10.164,1217.2,1217.1,0.80289802]
[1672707882043,10.16077847,1217.2,1217.1,0.70662923]
[1672707882402,16.27812396,1217.2,1217.1,0.70662923]
[1672707882616,10.16077847,1217.2,1217.1,0.70662923]
[1672707884924,16.27812396,1217.2,1217.1,0.70662923]
[1672707885076,15.25105599,1217.2,1217.1,8.92287923]
[1672707885287,15.25105599,1217.2,1217.1,9.01914802]
[1672707887973,15.25105599,1217.2,1217.1,17.23539802]
[1672707888179,15.25105599,1217.2,1217.1,25.45164802]
[1672707888546,15.25105599,1217.2,1217.1,20.78551782]
[1672707888547,14.23880671,1217.2,1217.1,20.78551782]
[1672707888914,5.0,1217.2,1217.1,37.10051456]
[1672707889067,5.0,1217.2,1217.1,37.35289838]
[1672707889745,5.0,1217.3,1217.1,37.35289838]
[1672707889971,4.934,1217.3,1217.2,3.666]
[1672707890174,9.934,1217.3,1217.2,7.40258984]
[1672707890386,9.934,1217.3,1217.2,32.14556863]
[1672707891483,9.934,1217.3,1217.2,32.39795245]
[1672707898685,4.934,1217.3,1217.2,32.39795245]
[1672707899588,9.934,1217.3,1217.2,32.39795245]
[1672707901010,9.934,1217.3,1217.2,30.56495245]
[1672707902649,9.934,1217.3,1217.2,30.5614841]
[1672707902820,9.934,1217.3,1217.2,26.82489426]
[1672707905476,4.934,1217.3,1217.2,26.82489426]
[1672707905652,9.934,1217.3,1217.2,26.82489426]
[1672707910314,14.24145264,1217.3,1217.2,26.82489426]
[1672707910709,9.934,1217.3,1217.2,26.82489426]
[1672707910899,14.24145264,1217.3,1217.2,26.82489426]
[1672707911579,9.24145264,1217.3,1217.2,26.82489426]
[1672707912468,14.24145264,1217.3,1217.2,18.60932426]
[1672707915887,9.934,1217.3,1217.2,18.60932426]
[1672707916292,15.02427752,1217.3,1217.2,18.60932426]
[1672707918475,10.02427752,1217.3,1217.2,18.60932426]
[1672707919910,15.02427752,1217.3,1217.2,18.60932426]
[1672707920105,15.25427752,1217.3,1217.2,2.17818426]
[1672707920296,15.25427752,1217.3,1217.2,10.29748547]
[1672707920480,15.25427752,1217.3,1217.2,10.39375426]
[1672707920842,15.25427752,1217.3,1217.2,8.31183879]
[1672707921728,15.25427752,1217.3,1217.2,0.09626879]
[1672707921957,15.25427752,1217.3,1217.1,27.27767802]
[1672707922198,14.2430754,1217.2,1217.1,27.27767802]
[1672707923145,14.2450754,1217.2,1217.1,27.27467802]
[1672707923383,14.2430754,1217.2,1217.1,27.27767802]
[1672707925305,14.2430754,1217.2,1217.1,10.84580802]
[1672707926763,14.2430754,1217.2,1217.1,10.84308072]
[1672707927001,14.4730754,1217.2,1217.1,10.84308072]
[1672707927184,9.4730754,1217.2,1217.1,10.84308072]
[1672707928094,14.4730754,1217.2,1217.1,9.01608072]
[1672707929331,14.4730754,1217.2,1217.1,17.23233072]
[1672707929812,10.164,1217.2,1217.1,17.23233072]
[1672707930416,15.25427752,1217.2,1217.1,9.01608072]
[1672707930842,10.164,1217.2,1217.1,9.01608072]
[1672707931258,15.25427752,1217.2,1217.1,9.01608072]
[1672707931606,15.25427752,1217.2,1217.1,17.23233072]
[1672707932816,15.25427752,1217.2,1217.1,9.01608072]
[1672707933235,15.25427752,1217.2,1217.1,9.41013852]
[1672707933709,15.25427752,1217.2,1217.1,17.62638852]
[1672707934601,15.25427752,1217.2,1217.1,9.41013852]
[1672707935229,15.25427752,1217.2,1217.1,17.62638852]
[1672707935490,15.25427752,1217.2,1217.1,9.41013852]
[1672707936712,15.25427752,1217.2,1217.1,17.62638852]
[1672707936926,15.25427752,1217.2,1217.1,9.41013852]
[1672707938014,10.25427752,1217.2,1217.1,9.41013852]
[1672707938194,10.25427752,1217.2,1217.1,17.62638852]
[1672707938410,10.25427752,1217.2,1217.1,9.41013852]
[1672707938825,15.25427752,1217.2,1217.1,9.41013852]
[1672707939289,15.25427752,1217.2,1217.1,17.62638852]
[1672707939503,15.25427752,1217.2,1217.1,9.41013852]
[1672707939641,15.25427752,1217.2,1217.1,17.62638852]
[1672707941594,10.164,1217.2,1217.1,17.62638852]
[1672707941959,14.4802811,1217.2,1217.1,17.62638852]
[1672707944172,15.25427752,1217.2,1217.1,1.19422852]
[1672707944385,15.25427752,1217.2,1217.1,17.53045973]
[1672707944642,15.25427752,1217.2,1217.1,17.62672852]
[1672707945458,15.25427752,1217.2,1217.1,1.19422852]
[1672707945652,15.25427752,1217.2,1217.1,1.09795973]
[1672707946848,15.25427752,1217.2,1217.1,9.31420973]
[1672707947060,15.25427752,1217.2,1217.1,9.41047852]
[1672707947229,15.25427752,1217.2,1217.1,9.40771043]
[1672707947636,15.25427752,1217.2,1217.1,1.19146043]
[1672707947897,15.25427752,1217.2,1217.1,1.09519164]
[1672707950679,17.45971982,1217.2,1217.1,1.09519164]
[1672707951233,17.46848606,1217.2,1217.1,1.09519164]
[1672707952060,18.48678779,1217.2,1217.1,1.09519164]
[1672707956020,26.70235779,1217.2,1217.1,1.09519164]
[1672707956390,18.48678779,1217.2,1217.1,1.09519164]
[1672707957104,35.94944344,1217.2,1217.1,1.09519164]
[1672707957314,44.78191344,1217.2,1217.1,1.09519164]
[1672707957571,46.61491344,1217.2,1217.1,1.09519164]
[1672707958174,46.61491344,1217.2,1217.1,0.3940578]
[1672707960150,48.44791344,1217.2,1217.1,0.3940578]
[1672707960574,48.44991344,1217.2,1217.1,0.3940578]
[1672707960801,48.44791344,1217.2,1217.1,0.3940578]
[1672707964781,49.30657894,1217.2,1217.1,0.3940578]
[1672707965032,48.44791344,1217.2,1217.1,0.3940578]
[1672707967463,48.44791344,1217.2,1217.1,0.39141577]
[1672707974292,48.8560278,1217.2,1217.1,0.39141577]
[1672707976037,43.44791344,1217.2,1217.1,0.39141577]
[1672707977076,48.44791344,1217.2,1217.1,0.39141577]
[1672707981593,48.86240573,1217.2,1217.1,0.39141577]
[1672707983979,50.58001009,1217.2,1217.1,0.39141577]
[1672707985925,70.41301009,1217.2,1217.1,0.39141577]
[1672707986182,0.39099423,1217.1,1216.6,8.59486879]
[1672707986326,4.934,1216.7,1216.6,8.59486879]
[1672707986557,27.47270373,1216.7,1216.6,0.09626879]
[1672707986875,23.70270373,1216.7,1216.5,0.383229]
[1672707987088,13.61566855,1216.6,1216.5,0.383229]
[1672707987307,18.61566855,1216.6,1216.5,0.383229]
[1672707990083,14.31286114,1216.6,1216.5,0.383229]
[1672707990342,14.31286114,1216.6,1216.5,25.044129]
[1672707990657,14.31286114,1216.6,1216.5,25.14039779]
[1672707991249,14.30888594,1216.6,1216.5,25.14039779]
[1672707991461,14.30888594,1216.6,1216.5,16.92009779]
[1672707991901,14.30888594,1216.6,1216.5,8.69979779]
[1672707992518,14.30888594,1216.6,1216.5,25.14039779]
[1672707992747,14.30888594,1216.6,1216.5,16.92009779]
[1672707993339,14.30888594,1216.6,1216.5,8.69979779]
[1672707993903,14.30888594,1216.6,1216.5,16.92009779]
[1672707994074,14.30888594,1216.6,1216.5,8.69979779]
[1672707994508,18.61169335,1216.6,1216.5,8.69979779]
[1672707995287,18.61169335,1216.6,1216.5,1.3560781]
[1672707995457,18.61169335,1216.6,1216.5,1.25980931]
[1672707995666,18.61757594,1216.6,1216.5,1.25980931]
[1672707997563,14.30888594,1216.6,1216.5,1.25980931]
[1672707997916,18.6170638,1216.6,1216.5,1.25980931]
[1672708001476,14.30888594,1216.6,1216.5,1.25980931]
[1672708002066,18.61740217,1216.6,1216.5,1.25980931]
[1672708002272,14.30888594,1216.6,1216.5,1.25980931]
[1672708002941,18.61744061,1216.6,1216.5,1.25980931]
[1672708004007,18.61744061,1216.6,1216.5,17.70040931]
[1672708004180,18.61744061,1216.6,1216.5,17.7966781]
[1672708004598,18.61744061,1216.6,1216.5,9.5763781]
[1672708004827,18.61744061,1216.6,1216.5,1.3560781]
[1672708005056,18.61744061,1216.6,1216.5,1.25980931]
[1672708005697,14.30888594,1216.6,1216.5,1.25980931]
[1672708006291,22.52850594,1216.6,1216.5,1.25980931]
[1672708006719,24.73394824,1216.6,1216.5,1.25980931]
[1672708006930,29.81763187,1216.6,1216.5,1.25980931]
[1672708007543,24.73394824,1216.6,1216.5,1.10980931]
[1672708007958,29.04227933,1216.6,1216.5,1.10980931]
[1672708008069,20.82265933,1216.6,1216.5,1.10980931]
[1672708010344,21.59801187,1216.6,1216.5,1.10980931]
[1672708010732,16.51432824,1216.6,1216.5,1.10980931]
[1672708010960,20.82273156,1216.6,1216.5,1.10980931]
[1672708011335,20.8228486,1216.6,1216.5,1.10980931]
[1672708011596,16.51432824,1216.6,1216.5,1.10980931]
[1672708012417,11.51432824,1216.6,1216.5,1.10980931]
[1672708012978,16.59801187,1216.6,1216.5,1.10980931]
[1672708013355,21.59801187,1216.6,1216.5,1.10980931]
[1672708013770,38.03725187,1216.6,1216.5,1.10980931]
[1672708014085,21.59801187,1216.6,1216.5,1.10980931]
[1672708014315,16.51432824,1216.6,1216.5,1.10980931]
[1672708016556,20.82434593,1216.6,1216.5,1.10980931]
[1672708016774,16.51432824,1216.6,1216.5,1.10980931]
[1672708016918,21.59801187,1216.6,1216.5,1.10980931]
[1672708019343,38.03725187,1216.6,1216.5,1.10980931]
[1672708019598,29.81763187,1216.6,1216.5,1.10980931]
[1672708021029,21.59801187,1216.6,1216.5,1.10980931]
[1672708021247,19.39256957,1216.6,1216.5,9.33010931]
[1672708021611,19.39256957,1216.6,1216.5,9.4263781]
[1672708022547,19.39256957,1216.6,1216.5,1.2060781]
[1672708022696,19.39256957,1216.6,1216.5,9.33010931]
[1672708022907,19.39256957,1216.6,1216.5,9.4263781]
[1672708024142,19.39256957,1216.6,1216.5,1.2060781]
[1672708024342,19.39256957,1216.6,1216.5,1.10980931]
[1672708025573,19.40481991,1216.6,1216.5,1.10980931]
[1672708025789,5.0,1216.6,1216.5,1.10980931]
[1672708026128,9.934,1216.6,1216.5,29.68909313]
[1672708026339,9.934,1216.6,1216.5,29.78536192]
[1672708026499,9.934,1216.6,1216.5,35.03175679]
[1672708027389,9.934,1216.6,1216.5,33.19875679]
[1672708028281,9.934,1216.6,1216.5,9.67876192]
[1672708028282,14.47849559,1216.6,1216.5,9.67876192]
[1672708028485,14.47849559,1216.6,1216.5,9.4263781]
[1672708028701,14.47849559,1216.6,1216.5,1.2060781]
[1672708028951,14.47849559,1216.6,1216.5,1.10759389]
[1672708031374,10.164,1216.6,1216.5,9.32789389]
[1672708031588,10.164,1216.6,1216.5,9.42416268]
[1672708032037,14.47721923,1216.6,1216.5,9.42416268]
[1672708035545,10.164,1216.6,1216.5,9.42416268]
[1672708036233,10.164,1216.6,1216.5,1.20386268]
[1672708036391,10.164,1216.6,1216.5,1.10759389]
[1672708036392,15.25968144,1216.6,1216.5,1.10759389]
[1672708036608,11.85395958,1216.6,1216.5,1.10759389]
[1672708036858,16.85395958,1216.6,1216.5,1.10759389]
[1672708037856,11.75827814,1216.6,1216.5,9.32789389]
[1672708038070,11.75827814,1216.6,1216.5,9.42416268]
[1672708038454,14.47838734,1216.6,1216.5,9.42416268]
[1672708040655,15.25968144,1216.6,1216.5,9.42416268]
[1672708041168,10.164,1216.6,1216.5,9.42416268]
[1672708041376,15.25968144,1216.6,1216.5,9.42416268]
[1672708041533,10.164,1216.6,1216.5,9.42416268]
[1672708044575,14.47946123,1216.6,1216.5,9.42416268]
[1672708045626,10.164,1216.6,1216.5,9.42416268]
[1672708046312,15.25968144,1216.6,1216.5,9.42416268]
[1672708047343,10.25968144,1216.6,1216.5,9.42416268]
[1672708048449,15.25968144,1216.6,1216.5,9.42416268]
[1672708050185,15.25968144,1216.6,1216.5,17.64446268]
[1672708050729,10.164,1216.6,1216.5,17.64446268]
[1672708051078,14.47952087,1216.6,1216.5,17.64446268]
[1672708051458,10.164,1216.6,1216.5,17.64178725]
[1672708051676,14.47967489,1216.6,1216.5,17.64178725]
[1672708052073,14.47967489,1216.6,1216.5,9.42148725]
[1672708052616,14.47570901,1216.6,1216.5,9.42148725]
[1672708053377,10.16003412,1216.6,1216.5,9.42148725]
[1672708054701,15.25571556,1216.6,1216.5,9.42148725]
[1672708055290,10.16003412,1216.6,1216.5,9.42148725]
[1672708055813,14.47598273,1216.6,1216.5,9.42148725]
[1672708056399,10.16003412,1216.6,1216.5,9.42148725]
[1672708056633,14.47596424,1216.6,1216.5,9.42148725]
[1672708057594,9.47596424,1216.6,1216.5,9.42148725]
[1672708057910,5.16003412,1216.6,1216.5,9.42148725]
[1672708058524,10.16003412,1216.6,1216.5,9.42148725]
[1672708058698,14.47619657,1216.6,1216.5,9.42148725]
[1672708059745,15.25571556,1216.6,1216.5,9.42148725]
[1672708059954,15.25571556,1216.6,1216.5,1.20118725]
[1672708060180,15.25571556,1216.6,1216.5,1.10491846]
[1672708064300,15.25571556,1216.6,1216.5,9.32521846]
[1672708064512,15.25571556,1216.6,1216.5,9.42148725]
[1672708066099,10.25571556,1216.6,1216.5,9.42148725]
[1672708066988,15.25571556,1216.6,1216.5,9.42148725]
[1672708068205,15.25571556,1216.6,1216.5,1.20118725]
[1672708068456,15.25571556,1216.6,1216.5,1.10491846]
[1672708069559,15.25571556,1216.6,1216.5,9.32521846]
[1672708069894,15.25571556,1216.6,1216.5,9.42148725]
[1672708073099,10.25571556,1216.6,1216.5,9.42148725]
[1672708073299,10.25571556,1216.6,1216.5,9.41894513]
[1672708073982,15.25571556,1216.6,1216.5,9.41894513]
[1672708075904,15.25571556,1216.6,1216.5,17.63924513]
[1672708080236,10.16003412,1216.6,1216.5,17.63924513]
[1672708081161,15.25571556,1216.6,1216.5,17.63924513]
[1672708081724,10.16003412,1216.6,1216.5,17.63924513]
[1672708082558,15.25571556,1216.6,1216.5,17.63924513]
[1672708084879,15.25571556,1216.6,1216.5,25.85954513]
[1672708085070,14.47927603,1216.6,1216.5,26.11192895]
[1672708093908,14.47927603,1216.6,1216.5,26.10954832]
[1672708094116,9.47927603,1216.6,1216.5,26.10954832]
[1672708095348,14.47927603,1216.6,1216.5,26.10954832]
[1672708101360,9.47927603,1216.6,1216.5,26.10954832]
[1672708102054,14.47927603,1216.6,1216.5,26.10954832]
[1672708104390,14.48127603,1216.6,1216.5,26.10654832]
[1672708104618,14.47927603,1216.6,1216.5,26.10954832]
[1672708106082,10.16003412,1216.6,1216.5,26.10954832]
[1672708107420,14.47806525,1216.6,1216.5,26.10954832]
[1672708108068,9.47806525,1216.6,1216.5,26.10954832]
[1672708109093,9.47806525,1216.6,1216.5,26.05954832]
[1672708109529,5.16003412,1216.6,1216.5,26.05954832]
[1672708109975,9.47836129,1216.6,1216.5,26.05954832]
[1672708110412,14.47836129,1216.6,1216.5,26.05954832]
[1672708110985,47.03217988,1216.6,1216.5,1.1462645]
[1672708111195,47.03217988,1216.6,1216.5,1.04999571]
[1672708112213,38.81255988,1216.6,1216.5,1.04999571]
[1672708112526,32.71213953,1216.6,1216.5,0.99999571]
[1672708112664,24.49251953,1216.6,1216.5,0.99999571]
[1672708115204,29.59072818,1216.6,1216.5,0.99999571]
[1672708115397,21.37110818,1216.6,1216.5,0.99999571]
[1672708115771,21.37110818,1216.6,1216.5,0.94999571]
[1672708117451,16.37110818,1216.6,1216.5,0.94999571]
[1672708118396,19.40710391,1216.6,1216.5,0.94999571]
[1672708119132,19.40710391,1216.6,1216.5,0.89999571]
[1672708121020,46.88317561,1216.6,1216.5,0.89999571]
[1672708121443,47.50037561,1216.6,1216.5,0.89999571]
[1672708122017,39.28075561,1216.6,1216.5,0.89999571]
[1672708122229,31.06113561,1216.6,1216.5,0.89999571]
[1672708122466,39.28075561,1216.6,1216.5,0.89999571]
[1672708122717,33.18033526,1216.6,1216.5,0.89999571]
[1672708123043,39.28075561,1216.6,1216.5,0.89999571]
[1672708123622,33.18033526,1216.6,1216.5,0.89999571]
[1672708124093,21.83578783,1216.6,1216.5,9.12029571]
[1672708124287,21.83578783,1216.6,1216.5,9.2165645]
[1672708124451,21.21858783,1216.6,1216.5,0.9962645]
[1672708124667,19.40358783,1216.6,1216.5,9.12029571]
[1672708124877,19.40358783,1216.6,1216.5,9.2165645]
[1672708125776,14.30889526,1216.6,1216.5,0.9962645]
[1672708125951,14.30889526,1216.6,1216.5,0.89999571]
[1672708126267,19.40376686,1216.6,1216.5,0.89999571]
[1672708128298,19.40376686,1216.6,1216.5,0.84999571]
[1672708129360,19.40376686,1216.6,1216.5,1.05545339]
[1672708130413,19.40376686,1216.6,1216.4,0.09626879]
[1672708130414,8.9265364,1216.5,1216.4,0.09626879]
[1672708130559,42.96629754,1216.5,1216.0,8.3124]
[1672708130924,4.9265364,1216.1,1216.0,8.40866879]
[1672708131141,4.9265364,1216.1,1216.0,0.09626879]
[1672708131307,5.1565364,1216.1,1215.9,25.51134309]
[1672708131524,5.0,1216.0,1215.9,28.0624774]
[1672708141681,4.9925364,1216.1,1215.9,28.0624774]
[1672708141841,4.9265364,1216.1,1215.9,33.34133599]
[1672708142633,5.0,1216.0,1215.9,33.34133599]
[1672708144089,5.0,1216.0,1215.9,28.0624774]
[1672708147987,5.0,1216.0,1215.9,25.51134309]
[1672708148204,10.1565364,1216.0,1215.9,9.06378309]
[1672708152814,10.1565364,1216.0,1215.9,0.83942309]
[1672708153129,10.1565364,1216.0,1215.9,0.7431543]
[1672708154187,14.30539754,1216.0,1215.9,0.7431543]
[1672708154588,15.74253729,1216.0,1215.9,0.7431543]
[1672708154798,15.74253729,1216.0,1215.9,0.739275]
[1672708156144,10.1565364,1216.0,1215.9,25.412355]
[1672708156354,10.1565364,1216.0,1215.9,25.50862379]
[1672708156790,10.1565364,1216.0,1215.9,17.28426379]
[1672708157516,10.1565364,1216.0,1215.9,0.83554379]
[1672708157748,10.1565364,1216.0,1215.9,0.739275]
[1672708158141,10.1565364,1216.0,1215.9,8.963635]
[1672708158350,10.1565364,1216.0,1215.9,9.05990379]
[1672708158934,10.1565364,1216.0,1215.9,17.28426379]
[1672708159926,10.1565364,1216.0,1215.9,25.50862379]
[1672708160484,10.1565364,1216.0,1215.9,17.28426379]
[1672708169532,14.46994288,1216.0,1215.9,17.28426379]
[1672708169948,9.46994288,1216.0,1215.9,17.28426379]
[1672708170961,14.46994288,1216.0,1215.9,17.28426379]
[1672708171593,14.46994288,1216.0,1215.9,0.83554379]
[1672708171817,14.46994288,1216.0,1215.9,0.739275]
[1672708172064,14.46994288,1216.0,1215.9,8.963635]
[1672708172223,14.46994288,1216.0,1215.9,9.05990379]
[1672708176993,9.46994288,1216.0,1215.9,9.05600746]
[1672708178015,14.46994288,1216.0,1215.9,9.05600746]
[1672708180011,14.41994288,1216.0,1215.9,9.05600746]
[1672708180794,14.41994288,1216.0,1215.9,9.00600746]
[1672708181319,10.1065364,1216.0,1215.9,0.78164746]
[1672708181477,15.2017478,1216.0,1215.9,0.68537867]
[1672708181687,10.1065364,1216.0,1215.9,0.68537867]
[1672708182158,14.42329277,1216.0,1215.9,0.68537867]
[1672708182315,45.90371232,1216.0,1215.9,0.68537867]
[1672708182965,52.02117778,1216.0,1215.9,0.68537867]
[1672708183232,45.90371232,1216.0,1215.9,0.68537867]
[1672708186246,52.01082022,1216.0,1215.9,0.68537867]
[1672708188808,24.48657762,1216.0,1215.9,0.68537867]
[1672708192958,19.39967232,1216.0,1215.9,17.13409867]
[1672708193320,22.17857926,1216.0,1215.9,9.00600746]
[1672708193533,22.17857926,1216.0,1215.9,0.78164746]
[1672708193728,22.17857926,1216.0,1215.9,0.68537867]
[1672708194557,17.87289754,1216.0,1215.9,0.68537867]
[1672708195220,22.17825403,1216.0,1215.9,0.68537867]
[1672708196352,17.87289754,1216.0,1215.9,0.68537867]